bitfinex/quotes_BTCUSD_20230103
["timestamp","ask_amount","ask_price","bid_price","bid_amount"]
[1672761196707,0.01499737,16675.0,16674.0,5.02183208]
[1672761196956,0.01499737,16675.0,16674.0,4.32183208]
[1672761197481,0.01499737,16675.0,16674.0,4.65446685]
[1672761197725,0.01499737,16675.0,16674.0,4.32183208]
[1672761197978,0.01499737,16675.0,16674.0,5.02183208]
[1672761198240,0.01499737,16675.0,16674.0,5.3458312]
[1672761198496,0.01499737,16675.0,16674.0,5.02183208]
[1672761199101,0.01499737,16675.0,16674.0,5.30191312]
[1672761200038,0.01499737,16675.0,16674.0,5.12161312]
[1672761200777,0.01499737,16675.0,16674.0,4.50571112]
[1672761201293,0.17061953,16675.0,16674.0,4.84153208]
[1672761201579,0.17061953,16675.0,16674.0,5.23408303]
[1672761201795,0.17061953,16675.0,16674.0,4.61818103]
[1672761202055,0.43936157,16675.0,16674.0,4.61818103]
[1672761203417,0.63306995,16675.0,16674.0,4.61818103]
[1672761205426,1.69898573,16675.0,16674.0,4.61818103]
[1672761205929,1.69890732,16675.0,16674.0,4.61818103]
[1672761206192,0.63309438,16675.0,16674.0,5.47560292]
[1672761206472,0.63309438,16675.0,16674.0,6.09150492]
[1672761206746,0.63309438,16675.0,16674.0,5.19150492]
[1672761206945,0.63309438,16675.0,16674.0,4.57560292]
[1672761207188,1.69888681,16675.0,16674.0,4.57560292]
[1672761207430,0.8122347,16675.0,16674.0,4.57560292]
[1672761207975,1.69888561,16675.0,16674.0,4.57560292]
[1672761208192,0.8122347,16675.0,16674.0,4.57560292]
[1672761208445,0.63322564,16675.0,16674.0,5.19150492]
[1672761209965,0.63322564,16675.0,16674.0,4.84153208]
[1672761210490,0.63322564,16675.0,16674.0,5.12621391]
[1672761210768,0.27497351,16675.0,16674.0,4.84153208]
[1672761211019,0.00599737,16675.0,16674.0,4.84153208]
[1672761211272,0.1853587,16675.0,16674.0,4.84153208]
[1672761212293,0.45433484,16675.0,16674.0,5.18755059]
[1672761212542,0.45433484,16675.0,16674.0,4.07029861]
[1672761212789,0.27497351,16675.0,16674.0,4.40731871]
[1672761213814,0.63374467,16675.0,16674.0,4.40731871]
[1672761214852,0.45435839,16675.0,16674.0,5.02322071]
[1672761215105,0.45435839,16675.0,16674.0,5.04286308]
[1672761216132,0.81312955,16675.0,16674.0,5.04286308]
[1672761216364,0.45435839,16675.0,16674.0,5.04286308]
[1672761216644,0.45435839,16675.0,16674.0,4.42696108]
[1672761216879,0.45435839,16675.0,16674.0,4.42851349]
[1672761217380,0.81312955,16675.0,16674.0,4.06285261]
[1672761217652,0.45435839,16675.0,16674.0,4.06285261]
[1672761217924,0.18538225,16675.0,16674.0,4.06285261]
[1672761218932,0.45435839,16675.0,16674.0,4.4230086]
[1672761219189,0.18538225,16675.0,16674.0,4.67875461]
[1672761219963,0.18538225,16675.0,16674.0,4.85805461]
[1672761220216,0.00599737,16675.0,16674.0,5.15805461]
[1672761220441,0.00591869,16675.0,16674.0,5.15805461]
[1672761220816,0.00591869,16675.0,16674.0,4.85805461]
[1672761226951,0.00591869,16675.0,16674.0,5.2308754]
[1672761227247,0.00591869,16675.0,16674.0,4.85805461]
[1672761227464,0.00591869,16675.0,16674.0,4.15805461]
[1672761228489,0.00591869,16675.0,16674.0,4.85805461]
[1672761235344,0.00591869,16675.0,16674.0,4.85798461]
[1672761240162,0.00591869,16675.0,16674.0,4.15798461]
[1672761241162,0.00591869,16675.0,16674.0,4.85798461]
[1672761242161,0.17230141,16676.0,16675.0,0.5]
[1672761242417,0.63851359,16677.0,16675.0,5.16834998]
[1672761242634,0.27974243,16677.0,16676.0,1.98477398]
[1672761242888,0.27974243,16677.0,16676.0,4.10264924]
[1672761242889,0.26974243,16677.0,16676.0,4.10264924]
[1672761243118,0.27573908,16677.0,16676.0,4.10264924]
[1672761243367,0.27573908,16677.0,16676.0,4.80264924]
[1672761245194,0.63451024,16677.0,16676.0,4.80264924]
[1672761245405,0.64151024,16677.0,16676.0,4.80464924]
[1672761246136,0.64151024,16677.0,16676.0,4.80612772]
[1672761247123,0.64151024,16677.0,16676.0,4.10612772]
[1672761248153,0.64151024,16677.0,16676.0,5.20612772]
[1672761251447,0.64151024,16677.0,16676.0,5.18701446]
[1672761251719,0.28273908,16677.0,16676.0,5.5250866]
[1672761252212,0.46213172,16677.0,16676.0,5.5250866]
[1672761256977,0.46213172,16677.0,16676.0,5.50660744]
[1672761257747,0.46213172,16677.0,16676.0,5.50658744]
[1672761258220,0.4384548,16677.0,16676.0,5.50658744]
[1672761258474,0.4384548,16677.0,16676.0,5.50961695]
[1672761259721,0.4384548,16677.0,16676.0,5.18699446]
[1672761260234,0.4384548,16677.0,16676.0,5.51694617]
[1672761262808,0.79722596,16677.0,16676.0,5.51694617]
[1672761263067,0.79722596,16677.0,16676.0,4.81694617]
[1672761263338,0.79730908,16677.0,16676.0,4.81694617]
[1672761263559,0.79731039,16677.0,16676.0,4.81694617]
[1672761263783,0.61783332,16677.0,16676.0,4.81694617]
[1672761264008,0.43853966,16677.0,16676.0,5.51694617]
[1672761264790,0.79731082,16677.0,16676.0,5.51694617]
[1672761265553,0.79731082,16677.0,16676.0,5.51546769]
[1672761265814,0.61783332,16677.0,16676.0,5.51554161]
[1672761266095,0.61783332,16677.0,16676.0,5.51554961]
[1672761266587,1.06581852,16677.0,16676.0,4.90241761]
[1672761266847,1.70626334,16677.0,16676.0,4.90241761]
[1672761267414,1.70627224,16677.0,16676.0,4.90241761]
[1672761268046,1.34750108,16677.0,16676.0,4.72211761]
[1672761268273,0.81991334,16677.0,16676.0,4.72211761]
[1672761268497,0.81991027,16677.0,16676.0,4.72211761]
[1672761268723,1.34750108,16677.0,16676.0,4.72211761]
[1672761268946,0.81991158,16677.0,16676.0,4.72211761]
[1672761269166,0.46098185,16677.0,16676.0,4.72211761]
[1672761269390,1.34750108,16677.0,16676.0,4.72204369]
[1672761269614,1.51563388,16677.0,16676.0,3.94357969]
[1672761269839,1.51563388,16677.0,16676.0,3.14247971]
[1672761270578,0.89951588,16677.0,16676.0,3.14247971]
[1672761270848,1.51563388,16677.0,16676.0,3.62763688]
[1672761272371,1.51563388,16677.0,16676.0,3.61913688]
[1672761273170,2.05327995,16677.0,16676.0,3.13397971]
[1672761273424,2.05327995,16677.0,16676.0,1.93465171]
[1672761274489,2.55462993,16677.0,16676.0,1.602]
[1672761274746,2.55462993,16677.0,16675.0,2.45112007]
[1672761275002,1.77863076,16676.0,16675.0,2.94011108]
[1672761275270,1.77863076,16676.0,16675.0,2.508033]
[1672761275626,1.66684175,16676.0,16675.0,2.508033]
[1672761275790,1.66684175,16676.0,16675.0,2.99696712]
[1672761276580,2.29095975,16676.0,16675.0,3.05896712]
[1672761276821,2.29095975,16676.0,16675.0,3.05894712]
[1672761277068,1.67484175,16676.0,16675.0,3.05894712]
[1672761278063,2.03330899,16676.0,16675.0,3.05894712]
[1672761278583,2.64942699,16676.0,16675.0,2.45076412]
[1672761278835,2.64942699,16676.0,16675.0,2.45076643]
[1672761278836,2.64942478,16676.0,16675.0,2.45076643]
[1672761279085,2.32345765,16676.0,16675.0,3.05046643]
[1672761279337,1.43683867,16676.0,16675.0,3.05046643]
[1672761279558,2.32345755,16676.0,16675.0,3.05046643]
[1672761281891,2.32345755,16676.0,16675.0,3.34571271]
[1672761281892,2.31347575,16676.0,16675.0,3.34571271]
[1672761282150,1.69566352,16676.0,16675.0,3.34571271]
[1672761282413,0.64126833,16676.0,16675.0,3.34571271]
[1672761282655,0.37246168,16676.0,16675.0,3.34571271]
[1672761283238,1.87520537,16676.0,16675.0,3.34571271]
[1672761283681,1.25736729,16676.0,16675.0,3.34571271]
[1672761283934,1.20129276,16676.0,16675.0,3.34571271]
[1672761284183,1.25735969,16676.0,16675.0,3.34571271]
[1672761284504,0.98857968,16676.0,16675.0,3.34571271]
[1672761284716,0.37246168,16676.0,16675.0,3.34571271]
[1672761285478,0.64123845,16676.0,16675.0,3.34571271]
[1672761286474,0.37246168,16676.0,16675.0,3.34571271]
[1672761286788,0.64122485,16676.0,16675.0,3.34571271]
[1672761288830,0.64122485,16676.0,16675.0,3.34570271]
[1672761290669,1.08909965,16676.0,16675.0,3.34570271]
[1672761291018,0.64122485,16676.0,16675.0,3.34570271]
[1672761291159,1.08909965,16676.0,16675.0,3.34570271]
[1672761291420,0.64122485,16676.0,16675.0,3.34570271]
[1672761291675,0.82033648,16676.0,16675.0,3.34570271]
[1672761292435,2.32308852,16676.0,16675.0,3.34570271]
[1672761292690,1.43645448,16676.0,16675.0,2.64570271]
[1672761292938,1.70518089,16676.0,16675.0,2.64570271]
[1672761293186,1.70517628,16676.0,16675.0,2.64570271]
[1672761293439,1.43645448,16676.0,16675.0,2.64570271]
[1672761293691,0.64118968,16676.0,16675.0,3.34570271]
[1672761295457,0.82033648,16676.0,16675.0,3.34570271]
[1672761295708,2.3230808,16676.0,16675.0,3.34570271]
[1672761297522,1.96461577,16676.0,16675.0,3.34570271]
[1672761297774,2.32294731,16676.0,16675.0,3.34570271]
[1672761298034,1.96461577,16676.0,16675.0,3.34570271]
[1672761298305,2.32298991,16676.0,16675.0,3.34570271]
[1672761299059,0.82024559,16676.0,16675.0,3.34570271]
[1672761299308,1.70686917,16676.0,16675.0,3.34570271]
[1672761299819,2.32298717,16676.0,16675.0,3.34570271]
[1672761302866,1.96461303,16676.0,16675.0,3.34570271]
[1672761303344,1.96461303,16676.0,16675.0,2.44570271]
[1672761303673,1.96461303,16676.0,16675.0,3.34570271]
[1672761304134,1.34849503,16676.0,16675.0,3.34570271]
[1672761305155,1.34849503,16676.0,16675.0,2.64570271]
[1672761305444,1.96461303,16676.0,16675.0,2.64570271]
[1672761306199,1.96521769,16676.0,16675.0,3.34570271]
[1672761306418,1.34909969,16676.0,16675.0,3.34570271]
[1672761307715,0.90062023,16676.0,16675.0,3.34570271]
[1672761308224,1.51673823,16676.0,16675.0,3.34570271]
[1672761309266,0.90062023,16676.0,16675.0,3.34570271]
[1672761309524,1.4382663,16676.0,16675.0,3.34570271]
[1672761309786,0.90062023,16676.0,16675.0,3.34570271]
[1672761312553,0.90062023,16676.0,16675.0,3.94540271]
[1672761314251,1.4382663,16676.0,16675.0,3.94540271]
[1672761314502,0.90062023,16676.0,16675.0,3.94540271]
[1672761316004,1.4382663,16676.0,16675.0,3.94540271]
[1672761318008,2.0543843,16676.0,16675.0,3.94540271]
[1672761318778,1.4382663,16676.0,16675.0,3.94540271]
[1672761319761,0.90062023,16676.0,16675.0,3.94540271]
[1672761320257,1.4382663,16676.0,16675.0,3.94540271]
[1672761322274,1.4382663,16676.0,16675.0,3.24540271]
[1672761322527,1.4382663,16676.0,16675.0,3.94540271]
[1672761322528,0.90062023,16676.0,16675.0,3.94540271]
[1672761323288,0.8221364,16676.0,16675.0,4.73390271]
[1672761323537,0.8221364,16676.0,16675.0,5.34707571]
[1672761324031,0.8221364,16676.0,16675.0,5.34207571]
[1672761324554,1.09152473,16676.0,16675.0,5.34207571]
[1672761324809,0.64256033,16676.0,16675.0,5.34207571]
[1672761325610,0.8220664,16676.0,16675.0,5.34207571]
[1672761325854,0.46289105,16676.0,16675.0,4.72890271]
[1672761326113,0.46289105,16676.0,16675.0,5.34207571]
[1672761327136,0.19350272,16676.0,16675.0,5.34207571]
[1672761329209,0.8221364,16676.0,16675.0,4.40605692]
[1672761329467,1.70872305,16676.0,16675.0,4.69740692]
[1672761329731,0.64230005,16676.0,16675.0,4.69740692]
[1672761330205,0.64230005,16676.0,16675.0,4.69761797]
[1672761330469,0.64230005,16676.0,16675.0,4.69740692]
[1672761331731,0.8221364,16676.0,16675.0,4.69740692]
[1672761331984,1.70871931,16676.0,16675.0,4.69740692]
[1672761332234,1.7087267,16676.0,16675.0,4.69740692]
[1672761332733,1.34955135,16676.0,16675.0,4.09770692]
[1672761332983,1.51670495,16676.0,16675.0,4.09770692]
[1672761333480,1.9652432,16676.0,16675.0,4.09770692]
[1672761334272,1.51670495,16676.0,16675.0,4.09770692]
[1672761334788,1.9652396,16676.0,16675.0,4.09770692]
[1672761335779,2.32407426,16676.0,16675.0,4.09770692]
[1672761336041,1.9652396,16676.0,16675.0,4.09770692]
[1672761336561,2.32404919,16676.0,16675.0,4.09770692]
[1672761337093,2.32404919,16676.0,16675.0,4.09766692]
[1672761339414,2.56410921,16676.0,16675.0,3.33651]
[1672761339666,1.87096991,16676.0,16675.0,1.657]
[1672761339926,2.40861598,16676.0,16675.0,1.657]
[1672761342158,2.40861598,16676.0,16675.0,0.47474466]
[1672761342669,2.91701066,16676.0,16674.0,1.06863305]
[1672761342924,2.29440641,16675.0,16674.0,0.0001421]
[1672761343183,1.96102963,16675.0,16674.0,0.7001421]
[1672761343438,3.6980757,16675.0,16674.0,0.7001421]
[1672761343683,4.06978627,16675.0,16674.0,0.0001421]
[1672761344971,4.06978273,16675.0,16674.0,0.0001421]
[1672761345231,4.20378273,16675.0,16674.0,0.0001421]
[1672761345487,3.83207216,16675.0,16674.0,0.0001421]
[1672761345750,3.29442963,16675.0,16674.0,0.0001421]
[1672761345995,4.33203933,16675.0,16674.0,0.0001421]
[1672761346242,3.79442963,16675.0,16674.0,0.0001421]
[1672761346500,4.57412963,16675.0,16674.0,0.0001421]
[1672761346755,6.8e-05,16673.0,16671.0,2.6465]
[1672761347033,1.48899539,16672.0,16670.0,0.90053586]
[1672761347286,1.00776887,16671.0,16670.0,0.90038586]
[1672761347541,1.94131514,16671.0,16670.0,0.90038586]
[1672761347810,1.75732512,16671.0,16670.0,0.90038586]
[1672761348128,1.14120712,16671.0,16670.0,0.90038586]
[1672761348320,1.57822606,16671.0,16670.0,0.60692872]
[1672761348576,0.96210806,16671.0,16670.0,0.60692872]
[1672761348822,0.53171338,16671.0,16670.0,0.60692872]
[1672761349045,1.65622606,16671.0,16670.0,0.90686872]
[1672761349331,0.53171338,16671.0,16670.0,0.90686872]
[1672761349579,0.26308086,16671.0,16670.0,0.90686872]
[1672761350399,0.53171338,16671.0,16670.0,0.90686872]
[1672761351121,0.26308086,16671.0,16670.0,0.90686872]
[1672761352198,0.26308086,16671.0,16670.0,1.34184813]
[1672761352695,0.08399665,16671.0,16670.0,1.34184813]
[1672761352965,0.26308086,16671.0,16670.0,1.34184813]
[1672761353212,0.08399665,16671.0,16670.0,1.58211926]
[1672761353467,0.08399665,16671.0,16670.0,2.90991924]
[1672761353722,0.08399665,16671.0,16670.0,3.70359624]
[1672761353974,0.08399665,16671.0,16670.0,4.20359624]
[1672761356055,0.08399665,16671.0,16670.0,6.2539378]
[1672761358095,0.08399665,16671.0,16670.0,5.98529624]
[1672761358832,0.08399665,16671.0,16670.0,6.26432776]
[1672761359600,0.08399665,16671.0,16670.0,6.28233218]
[1672761359853,0.08399665,16671.0,16670.0,6.25869853]
[1672761360586,0.00599665,16671.0,16670.0,6.25869853]
[1672761361093,0.01799665,16671.0,16670.0,6.28269853]
[1672761363404,6.8e-05,16673.0,16671.0,0.01798935]
[1672761363666,6.8e-05,16673.0,16672.0,6.511532]
[1672761363919,6.8e-05,16673.0,16672.0,8.41562725]
[1672761364183,0.00606609,16673.0,16672.0,8.41562725]
[1672761364953,0.01006609,16673.0,16672.0,8.51462725]
[1672761365481,0.01006609,16673.0,16672.0,8.96399961]
[1672761365746,0.01125948,16678.0,16672.0,8.96399961]
[1672761366009,0.00599809,16673.0,16672.0,5.21289056]
[1672761366263,0.2513195,16678.0,16672.0,8.95613402]
[1672761366483,0.2513195,16678.0,16677.0,1.15916]
[1672761366774,0.2513195,16678.0,16677.0,3.9866949]
[1672761366775,0.01125948,16678.0,16677.0,3.9866949]
[1672761367000,0.01725577,16678.0,16677.0,3.579644]
[1672761367433,0.19633998,16678.0,16677.0,3.579644]
[1672761367631,0.24233998,16678.0,16677.0,2.474544]
[1672761367865,0.24233998,16678.0,16677.0,3.49442591]
[1672761368401,0.24233998,16678.0,16677.0,3.48597591]
[1672761368656,0.24233998,16678.0,16677.0,2.87288391]
[1672761369146,0.24233998,16678.0,16677.0,3.17946275]
[1672761369423,0.24233998,16678.0,16677.0,3.79255475]
[1672761369879,0.24233998,16678.0,16677.0,3.00016275]
[1672761371238,0.24233998,16678.0,16677.0,2.10072475]
[1672761372744,0.5109725,16678.0,16677.0,2.10072475]
[1672761373579,0.24233998,16678.0,16677.0,2.10072475]
[1672761375352,0.24233998,16678.0,16677.0,2.60072475]
[1672761377398,0.24152758,16678.0,16677.0,2.60072475]
[1672761378412,0.06244337,16678.0,16677.0,2.60072475]
[1672761378907,0.06244337,16678.0,16677.0,3.21381675]
[1672761379156,0.06244337,16678.0,16677.0,2.60072475]
[1672761379414,0.06244337,16678.0,16677.0,3.21381675]
[1672761379875,0.06244337,16678.0,16677.0,3.99374475]
[1672761380406,0.06244337,16678.0,16677.0,3.38065275]
[1672761380654,0.06244337,16678.0,16677.0,3.99374475]
[1672761380911,0.06244337,16678.0,16677.0,3.38065275]
[1672761381175,0.06244337,16678.0,16677.0,3.99374475]
[1672761381687,0.06244337,16678.0,16677.0,3.38065275]
[1672761381937,0.06244337,16678.0,16677.0,3.99374475]
[1672761382201,0.06244337,16678.0,16677.0,4.03066261]
[1672761382498,0.06244337,16678.0,16677.0,4.18716591]
[1672761383250,0.06244337,16678.0,16677.0,4.19566591]
[1672761385063,0.06244337,16678.0,16677.0,4.47180751]
[1672761386382,0.06244337,16678.0,16677.0,4.18199876]
[1672761387628,0.06244337,16678.0,16677.0,4.51897642]
[1672761387880,0.06244337,16678.0,16677.0,4.18199876]
[1672761388652,0.06244337,16678.0,16677.0,4.48518096]
[1672761390936,0.06244337,16678.0,16677.0,4.18199876]
[1672761391719,0.06244337,16678.0,16677.0,4.52102971]
[1672761391958,0.06244337,16678.0,16677.0,3.90793771]
[1672761392207,0.06244337,16678.0,16677.0,3.40793771]
[1672761392452,0.24152758,16678.0,16677.0,3.40793771]
[1672761392969,0.06244337,16678.0,16677.0,3.40793771]
[1672761393734,0.24152758,16678.0,16677.0,3.40793771]
[1672761396298,0.5101601,16678.0,16677.0,3.40793771]
[1672761397312,0.5101601,16678.0,16677.0,3.70774771]
[1672761398103,0.68925916,16678.0,16677.0,3.70774771]
[1672761398368,0.68925916,16678.0,16677.0,3.70773771]
[1672761399901,0.68925916,16678.0,16677.0,3.70764195]
[1672761400150,0.86835573,16678.0,16677.0,3.70764195]
[1672761400401,1.70397334,16678.0,16677.0,3.70764195]
[1672761401097,1.70397334,16678.0,16677.0,3.70763195]
[1672761402301,0.86835573,16678.0,16677.0,3.70763195]
[1672761402576,0.51017246,16678.0,16677.0,2.60800395]
[1672761403074,1.34535556,16678.0,16677.0,2.59950395]
[1672761403549,1.70424859,16678.0,16677.0,2.59950395]
[1672761404082,0.87001392,16678.0,16677.0,3.360101]
[1672761404342,0.51112089,16678.0,16677.0,4.473193]
[1672761404584,0.51112089,16678.0,16677.0,4.84816103]
[1672761405887,0.87001392,16678.0,16677.0,4.84816103]
[1672761406144,0.51112089,16678.0,16677.0,4.84816103]
[1672761406391,0.87001392,16678.0,16677.0,4.84816103]
[1672761406636,0.51112089,16678.0,16677.0,4.84816103]
[1672761406857,0.51112089,16678.0,16677.0,4.84760969]
[1672761407367,0.51112089,16678.0,16677.0,5.54760969]
[1672761407614,0.24191672,16678.0,16677.0,5.54908809]
[1672761409116,0.24191672,16678.0,16677.0,5.94908809]
[1672761410137,0.06244337,16678.0,16677.0,5.94908809]
[1672761410396,0.24191672,16678.0,16677.0,5.94908809]
[1672761410647,0.06244337,16678.0,16677.0,5.94908809]
[1672761411139,0.24191672,16678.0,16677.0,5.94908809]
[1672761413148,0.24191672,16678.0,16677.0,5.58262006]
[1672761413421,0.24191672,16678.0,16677.0,5.92750834]
[1672761414169,0.51112089,16678.0,16677.0,5.92750834]
[1672761414423,0.51112089,16678.0,16677.0,5.92758226]
[1672761416350,0.51112089,16678.0,16677.0,5.97202252]
[1672761419448,0.69054057,16678.0,16677.0,5.9719486]
[1672761419698,0.8700518,16678.0,16677.0,5.3588566]
[1672761419949,0.69054057,16678.0,16677.0,5.3588566]
[1672761420720,0.69054057,16678.0,16677.0,5.97208921]
[1672761421463,0.87006958,16678.0,16677.0,5.97208921]
[1672761421994,0.69054057,16678.0,16677.0,5.35899721]
[1672761422526,0.69054057,16678.0,16677.0,4.95899721]
[1672761422778,0.69054057,16678.0,16677.0,4.9588566]
[1672761423021,0.69054057,16678.0,16677.0,4.95899721]
[1672761424033,0.69054057,16678.0,16677.0,4.45899721]
[1672761424622,1.13826966,16678.0,16677.0,4.4588566]
[1672761425060,0.86906549,16678.0,16677.0,4.4588566]
[1672761426329,2.31727868,16678.0,16677.0,4.4588566]
[1672761426595,2.31746438,16678.0,16677.0,4.4588566]
[1672761427360,1.70134638,16678.0,16677.0,4.4588566]
[1672761428108,1.69962167,16678.0,16677.0,4.45899721]
[1672761429106,0.69082148,16678.0,16677.0,4.45899721]
[1672761429890,0.69082148,16678.0,16677.0,4.27954431]
[1672761431682,0.69085632,16678.0,16677.0,4.27954431]
[1672761431936,1.13858541,16678.0,16677.0,4.27954431]
[1672761432185,0.69085632,16678.0,16677.0,4.27954431]
[1672761432916,0.69087726,16678.0,16677.0,4.27954431]
[1672761433661,1.13860635,16678.0,16677.0,4.27954431]
[1672761433909,0.69087726,16678.0,16677.0,4.27954431]
[1672761434163,0.51136104,16678.0,16677.0,4.78873737]
[1672761434425,0.24200588,16678.0,16677.0,5.54853737]
[1672761434676,0.06244337,16678.0,16677.0,6.16162937]
[1672761435480,0.06244337,16678.0,16677.0,6.45474255]
[1672761436255,0.24200588,16678.0,16677.0,6.45474255]
[1672761436541,0.06244337,16678.0,16677.0,6.45474255]
[1672761437563,0.06244337,16678.0,16677.0,6.16162937]
[1672761438349,0.06244337,16678.0,16677.0,6.46162937]
[1672761439166,0.06244337,16678.0,16677.0,6.53472249]
[1672761440756,0.06244337,16678.0,16677.0,6.16162937]
[1672761442312,0.06244337,16678.0,16677.0,6.49079468]
[1672761442580,0.06244337,16678.0,16677.0,6.16162937]
[1672761443120,0.06244337,16678.0,16677.0,6.73866794]
[1672761446476,0.06244337,16678.0,16677.0,6.73858794]
[1672761447505,0.06234705,16678.0,16677.0,7.00857428]
[1672761448074,0.06234705,16678.0,16677.0,6.73858794]
[1672761449899,0.06234705,16678.0,16677.0,6.91888794]
[1672761451750,0.06234705,16678.0,16677.0,6.21888794]
[1672761452726,0.06234705,16678.0,16677.0,6.91888794]
[1672761456665,0.06234705,16678.0,16677.0,6.73950192]
[1672761458733,0.06234705,16678.0,16677.0,6.03950192]
[1672761459756,0.06234705,16678.0,16677.0,6.73950192]
[1672761462768,7.05e-06,16678.0,16677.0,6.99756636]
[1672761463025,0.03941852,16680.0,16677.0,9.3708787]
[1672761463298,0.00599629,16678.0,16677.0,4.18292733]
[1672761463542,0.03941852,16680.0,16678.0,0.5]
[1672761463787,0.03941852,16680.0,16679.0,6.6335419]
[1672761464041,0.03941852,16680.0,16679.0,7.5251707]
[1672761464292,0.04541409,16680.0,16679.0,7.76523072]
[1672761464543,0.04541409,16680.0,16679.0,7.72283735]
[1672761464780,0.04541409,16680.0,16679.0,8.42283735]
[1672761465038,0.04541409,16680.0,16679.0,8.56183735]
[1672761465283,0.04541409,16680.0,16679.0,8.16183735]
[1672761465533,0.04541409,16680.0,16679.0,7.98217512]
[1672761466030,0.04541409,16680.0,16679.0,6.67028168]
[1672761466285,0.04541409,16680.0,16679.0,6.70292112]
[1672761466546,0.04541409,16680.0,16679.0,7.00292112]
[1672761466793,0.04541409,16680.0,16679.0,7.46881903]
[1672761467068,0.04541409,16680.0,16679.0,7.2891568]
[1672761468076,0.04541409,16680.0,16679.0,7.46881903]
[1672761468295,0.04541409,16680.0,16679.0,7.2891568]
[1672761470323,0.04541409,16680.0,16679.0,7.46881903]
[1672761470840,0.04541409,16680.0,16679.0,9.00063192]
[1672761471327,0.04541409,16680.0,16679.0,9.18078508]
[1672761471576,0.04541409,16680.0,16679.0,9.00058242]
[1672761471836,0.04541409,16680.0,16679.0,9.31122892]
[1672761472095,0.04541409,16680.0,16679.0,8.86158242]
[1672761472840,0.04541409,16680.0,16679.0,9.00058242]
[1672761473355,0.04541409,16680.0,16679.0,8.86158242]
[1672761474092,0.04541409,16680.0,16679.0,9.00058242]
[1672761474586,0.04541409,16680.0,16679.0,8.82015051]
[1672761477904,0.04541409,16680.0,16679.0,9.18078508]
[1672761478153,0.04541409,16680.0,16679.0,9.00042821]
[1672761478926,0.04541409,16680.0,16679.0,7.73952312]
[1672761480664,0.04188608,16680.0,16679.0,7.73952312]
[1672761481463,0.04188608,16680.0,16679.0,7.47023349]
[1672761481727,0.01848194,16681.0,16680.0,0.5]
[1672761481978,0.02447715,16681.0,16680.0,4.88655375]
[1672761482493,0.02447715,16681.0,16680.0,5.67902532]
[1672761482993,0.02447715,16681.0,16680.0,5.49952275]
[1672761483280,0.02447715,16681.0,16680.0,5.63852275]
[1672761484563,0.02447715,16681.0,16680.0,5.26122684]
[1672761485317,0.02447715,16681.0,16680.0,4.88419608]
[1672761485574,0.02447715,16681.0,16680.0,5.16968727]
[1672761485849,0.02447715,16681.0,16680.0,4.88419608]
[1672761486374,0.02447715,16681.0,16680.0,5.17243336]
[1672761487150,0.02447715,16681.0,16680.0,4.55946436]
[1672761487654,0.02447715,16681.0,16680.0,4.88419608]
[1672761487914,0.01655352,16681.0,16680.0,5.16967462]
[1672761488465,0.01655352,16681.0,16680.0,5.03067462]
[1672761488761,0.01755352,16681.0,16680.0,5.16867462]
[1672761489024,0.01701729,16681.0,16680.0,5.16867462]
[1672761489794,0.01701729,16681.0,16680.0,4.88319608]
[1672761493689,0.01701729,16681.0,16680.0,5.18319608]
[1672761495503,0.01701729,16681.0,16680.0,5.81676113]
[1672761495748,0.01701729,16681.0,16680.0,5.63725856]
[1672761496227,0.01701729,16681.0,16680.0,5.81676113]
[1672761496740,0.01701729,16681.0,16680.0,5.81677113]
[1672761497485,0.01701729,16681.0,16680.0,5.75804389]
[1672761497994,0.01701729,16681.0,16680.0,5.57854132]
[1672761498530,0.01701729,16681.0,16680.0,5.75804389]
[1672761498791,0.01701729,16681.0,16680.0,5.17153405]
[1672761499066,0.01701729,16681.0,16680.0,4.99203148]
[1672761499812,0.01701729,16681.0,16680.0,5.16554211]
[1672761500063,0.01701729,16681.0,16680.0,5.34444211]
[1672761500551,0.01701729,16681.0,16680.0,5.52394468]
[1672761502344,0.01701729,16681.0,16680.0,5.79323431]
[1672761504138,0.01701729,16681.0,16680.0,6.15339822]
[1672761504368,0.01701729,16681.0,16680.0,5.79341644]
[1672761504622,0.01701729,16681.0,16680.0,6.15339822]
[1672761504881,0.01701729,16681.0,16680.0,5.79341644]
[1672761505116,0.01701729,16681.0,16680.0,6.15339822]
[1672761505624,0.01701729,16681.0,16680.0,5.97371352]
[1672761508360,0.01701729,16681.0,16680.0,6.15407039]
[1672761508609,0.01701729,16681.0,16680.0,6.42358012]
[1672761509656,0.01701729,16681.0,16680.0,5.97393362]
[1672761512740,0.01695697,16681.0,16680.0,7.11028774]
[1672761513507,0.01695697,16681.0,16680.0,7.46953455]
[1672761514525,0.01695697,16681.0,16680.0,7.11028774]
[1672761514777,0.01269095,16682.0,16680.0,6.66064124]
[1672761515033,0.01380736,16683.0,16681.0,3.72617104]
[1672761515293,0.06338023,16684.0,16682.0,6.32762955]
[1672761515539,0.06338023,16684.0,16683.0,3.48497789]
[1672761515808,0.06338023,16684.0,16683.0,6.0705649]
[1672761516063,0.06338023,16684.0,16683.0,6.42955622]
[1672761516064,0.05838023,16684.0,16683.0,6.42955622]
[1672761516335,0.06437436,16684.0,16683.0,7.12955622]
[1672761516588,0.02551016,16686.0,16684.0,0.05836587]
[1672761516902,0.02551016,16686.0,16685.0,4.80131312]
[1672761517102,0.02051016,16686.0,16685.0,5.69170726]
[1672761517362,0.02650357,16686.0,16685.0,6.21190726]
[1672761517613,0.02650357,16686.0,16685.0,5.9343508]
[1672761518133,0.02750357,16686.0,16685.0,5.9343508]
[1672761519454,0.02750357,16686.0,16685.0,5.91850506]
[1672761519969,0.02750357,16686.0,16685.0,5.6016208]
[1672761520473,0.02750357,16686.0,16685.0,5.91035676]
[1672761520874,0.02750357,16686.0,16685.0,5.6016208]
[1672761521028,0.02650357,16686.0,16685.0,5.89039515]
[1672761521277,0.02650357,16686.0,16685.0,5.7416208]
[1672761524548,0.02650357,16686.0,16685.0,6.07202464]
[1672761524807,0.02650357,16686.0,16685.0,4.99165396]
[1672761525064,0.02650357,16686.0,16685.0,4.37888696]
[1672761525596,0.02650357,16686.0,16685.0,4.84154812]
[1672761525883,0.02650357,16686.0,16685.0,4.84162202]
[1672761526102,0.02650357,16686.0,16685.0,5.02082202]
[1672761526365,0.02650357,16686.0,16685.0,4.62082202]
[1672761527386,0.02650357,16686.0,16685.0,5.29011782]
[1672761527659,0.02650357,16686.0,16685.0,5.59011782]
[1672761528684,0.02650357,16686.0,16685.0,5.29011782]
[1672761529726,0.02650357,16686.0,16685.0,5.59011782]
[1672761530233,0.02650357,16686.0,16685.0,5.29011782]
[1672761530483,0.02650357,16686.0,16685.0,5.59011782]
[1672761532531,0.02650357,16686.0,16685.0,5.02082202]
[1672761533299,0.02650357,16686.0,16685.0,5.37642415]
[1672761533570,0.02650357,16686.0,16685.0,5.0192245]
[1672761533821,0.35888018,16689.0,16686.0,0.5]
[1672761534077,0.35888018,16689.0,16688.0,0.1803]
[1672761534326,0.35888018,16689.0,16688.0,2.4815069]
[1672761534588,0.36487251,16689.0,16688.0,2.4815069]
[1672761534877,0.36587251,16689.0,16688.0,2.4815069]
[1672761535131,0.36487251,16689.0,16688.0,3.1815069]
[1672761535383,0.00699233,16689.0,16688.0,3.4810769]